Cogmind - Beta 13 @@@ ROGUE MODE // 2024.05.12 @ 19:37:01 Player: Dicaso9 Result: Destroyed by Y-54 Guardian with Flak Gun Performance ------------- Evolutions (3) 1500 Regions Visited (7) 1400 Robots Destroyed (102) 510 Value Destroyed (3097) 3097 Prototype IDs (3) 60 Alien Tech Used (0) 0 Bonus (74) 74 TOTAL SCORE: 6641 Bonus ------- Follower Combat Kills 147 Friendly Fire -73 Cogmind --------- Core Integrity 0/700 Matter 300/300 Energy 98/100 System Corruption 23% Temperature Cool (18) Movement Core (50) Location -7/Storage Parts ------- > --- POWER (2) -------- (None) > --- PROPULSION (4) --- (None) > --- UTILITY (4) ------ (None) > --- WEAPON (3) ------- (None) > --- INVENTORY (5) ---- Light Nuclear Core Peak State ------------ > --- POWER ------------ Light Nuclear Core Micro Nuclear Core > --- PROPULSION ------- Advanced Treads Advanced Treads Advanced Treads Titanium Leg > --- UTILITY ---------- Improved Heat Sink Medium Storage Unit Light Armor Plating Improved Light Armor Plating > --- WEAPON ----------- Shock Rifle Pulse Rifle Proton Missile Launcher > --- INVENTORY -------- Light Ion Engine Light Nuclear Core Aluminum Leg Structural Scanner Experimental Sensor Array Seismic Detector Autogun Rocket Launcher [Rating: 39] Favorites ----------- Power Light Ion Engine Engine Light Ion Engine Power Core Micro Nuclear Core Propulsion Aluminum Leg Treads Light Treads Leg Aluminum Leg Utility Small Storage Unit Device Structural Scanner Storage Small Storage Unit Processor Signal Interpreter Protection Hardened Light Armor Plating Weapon Autogun Energy Gun Medium Laser Ballistic Gun Autogun Ballistic Cannon Flak Cannon Launcher Rocket Launcher Build | -11 -10 -10 -10 -9 -8 -7 -7 ------- Run | Yrd Mat Min Exi Min Mat Fac Sto Slots Evolved 6 | . . . . . 4 2 . Power 1 | . . . . . 1 . . Propulsion 2 | . . . . . 1 1 . Utility 2 | . . . . . 1 1 . Weapon 1 | . . . . . 1 . . Parts Attached 115 | 7 12 16 1 12 21 32 14 Power 18 | 1 1 3 1 2 4 4 2 Engine 13 | 1 1 2 1 2 3 2 1 Core 5 | . . 1 . . 1 2 1 Reactor . | . . . . . . . . Propulsion 26 | 2 1 4 . 1 5 9 4 Treads 7 | . . . . . 2 3 2 Leg 19 | 2 1 4 . 1 3 6 2 Wheel . | . . . . . . . . Hover . | . . . . . . . . Flight . | . . . . . . . . Utility 34 | 2 5 6 . 4 4 7 6 Device 15 | 1 1 2 . 2 2 2 5 Storage 3 | 1 . . . 1 . 1 . Processor 1 | . 1 . . . . . . Hackware . | . . . . . . . . Protection 15 | . 3 4 . 1 2 4 1 Artifact . | . . . . . . . . Weapon 37 | 2 5 3 . 5 8 12 2 Energy Gun 9 | 1 . . . . 2 4 2 Energy Cannon . | . . . . . . . . Ballistic Gun 16 | 1 5 2 . 3 3 2 . Ballistic Cannon 7 | . . . . . 3 4 . Launcher 5 | . . 1 . 2 . 2 . Special Weapon . | . . . . . . . . Impact Weapon . | . . . . . . . . Slashing Weapon . | . . . . . . . . Piercing Weapon . | . . . . . . . . Special Melee Weapon . | . . . . . . . . Unidentified Prototypes 3 | . . 1 . 1 1 . . Corrupted Parts 1 | . . . . . . . 1 System Corruption 4 | . . . . . . . 4 Parts Lost 41 | . . . . 3 5 15 18 Power 8 | . . . . 2 2 2 2 Propulsion 12 | . . . . 1 1 5 5 Utility 10 | . . . . . 2 2 6 Weapon 11 | . . . . . . 6 5 Highest Loss Streak 12 | . . . . 2 4 12 9 To Critical Strikes . | . . . . . . . . Average Slot Usage (%) 89 | . 99 99 100 96 81 73 84 Engine 8 | . 14 13 14 10 3 3 1 Core 2 | . . . . . 1 5 11 Treads 5 | . . . . . 16 8 16 Leg 17 | . 28 28 28 27 7 5 8 Device 6 | . 1 . . 11 8 9 9 Storage 11 | . 14 14 14 14 9 7 7 Protection 10 | . 12 12 14 2 8 11 7 Energy Gun 2 | . 4 . . . 2 2 12 Ballistic Gun 17 | . 23 27 28 27 10 6 . Ballistic Cannon 3 | . . . . . 13 6 . Launcher 1 | . . . . . . 3 5 Naked Turns 8 | . . . . . . . 8 Heaviest Build 46 | 15 21 21 19 27 46 42 41 Greatest Support 66 | 20 20 30 30 35 40 66 66 Greatest Overweight (x) 13 | . 1 1 . . 1 13 5 Average Overweight (x) . | . . . . . . 1 . Largest Inventory Capacity 25 | 8 8 8 8 10 10 25 10 Average Capacity 8 | 7 8 8 8 8 10 10 9 Most Carried 10 | 5 8 8 8 9 10 10 8 Average Carried 7 | 2 7 7 8 7 8 6 4 Final Capacity 10 | 8 8 8 8 10 10 10 5 Final Carried 10 | 4 8 8 8 8 10 6 1 Class Distribution -------------------- 55% | Mutant 21% | Tank 14% | Scavenger-Tank 7% | Scavenger-Mutant Dominant Class ---------------- Mutant | -10/Materials Mutant | -10/Mines Mutant | -10/Exiles Mutant | -9/Mines Tank | -8/Materials Tank | -7/Factory Scavenger-Tank | -7/Storage Resources | -11 -10 -10 -10 -9 -8 -7 -7 ----------- Run | Yrd Mat Min Exi Min Mat Fac Sto Matter Collected 3200 | 315 396 377 . 472 537 676 427 Remotely . | . . . . . . . . Salvage Created 3820 | 178 467 278 . 502 441 784 1170 Parts 191 | 14 27 22 . 22 28 37 41 Haulers Intercepted . | . . . . . . . . Recyclers Shooed 5 | . . . . . . 3 2 Parts Field Recycled . | . . . . . . . . Retrieved Matter . | . . . . . . . . Parts Self-Destructed . | . . . . . . . . Prevented . | . . . . . . . . Kills | -11 -10 -10 -10 -9 -8 -7 -7 ------- Run | Yrd Mat Min Exi Min Mat Fac Sto Combat Hostiles Destroyed 76 | . 10 10 . 15 11 14 16 Guns 53 | . 10 8 . 12 7 6 10 Cannons 7 | . . . . . 4 3 . AOE 13 | . . 2 . 3 . 5 3 Classes Destroyed 14 | 3 3 . . 4 1 3 . Worker 11 | 2 3 1 . 1 1 3 . Builder 2 | . . . . . . 1 1 Tunneler 3 | 3 . . . . . . . Recycler 10 | 1 . . . . . 6 3 Watcher 4 | . 1 . . . 2 1 . Swarmer 15 | . 2 6 . . . 7 . Grunt 44 | . 8 4 . 7 8 3 14 Duelist 1 | . . . . 1 . . . Sentry 5 | . . . . 2 2 . 1 Demolisher 1 | . . . . 1 . . . Hunter 1 | . . . . . . 1 . Programmer 4 | . . . . . . 3 1 Heavy 1 | . . . . . 1 . . Assembled 4 | . . . . 4 . . . Best Kill Streak 9 | 2 6 3 . 8 4 9 5 Combat Bots Only 8 | . 4 3 . 8 4 6 4 Max Kills in Single Turn 3 | 1 1 2 . 2 2 3 1 Gunslinging . | . . . . . . . . Exploded 3 | . . 2 . 2 . 3 1 Melee . | . . . . . . . . Uniques/NPCs Destroyed . | . . . . . . . . Combat | -11 -10 -10 -10 -9 -8 -7 -7 -------- Run | Yrd Mat Min Exi Min Mat Fac Sto Hostile Shots Fired 658 | . 78 51 . 39 68 161 261 Missed 209 | . 25 21 . 9 12 43 99 Damage Taken 6570 | . 637 319 . 448 1198 1991 1977 Core 1009 | . 113 52 . 23 118 232 471 Absorbed by Shields . | . . . . . . . . Regen/Repaired (Parts) 106 | . . . . . 106 . . Core Remaining (%) 67 | 100 . . . 24 78 . . Volleys Fired 255 | 15 42 25 . 40 31 57 45 Largest 3 | 2 2 2 . 2 3 3 3 Hottest 152 | 70 70 56 . 56 132 128 152 Shots Fired 564 | 30 84 50 . 80 93 133 94 Gun 448 | 30 84 49 . 74 56 78 77 Cannon 85 | . . . . . 37 48 . Launcher 31 | . . 1 . 6 . 7 17 Special . | . . . . . . . . Kinetic 395 | 15 74 49 . 74 77 106 . Thermal 85 | 15 10 . . . 16 9 35 Explosive 14 | . . 1 . 6 . 7 . Electromagnetic 70 | . . . . . . 11 59 Robot Hit Streak 17 | 3 16 8 . 17 8 8 7 Robot Miss Streak 17 | 2 5 4 . 3 9 17 2 Penetration Max . | . . . . . . . . Secondary Targets 7 | . 3 1 . 1 1 1 . Max Gunslinging Chain 1 | . 1 1 . 1 1 1 . Shots Hit Robots 342 | 17 53 26 . 52 60 71 63 Core Hits 222 | 7 20 19 . 26 54 52 44 Critical Kills 1 | . . . . 1 . . . Critical Parts Destroyed . | . . . . . . . . Critical Strikes 4 | 1 1 . . 1 1 . . Burn 3 | 1 1 . . . 1 . . Destroy 1 | . . . . 1 . . . Melee Attacks . | . . . . . . . . Impact . | . . . . . . . . Slashing . | . . . . . . . . Piercing . | . . . . . . . . Sneak Attacks . | . . . . . . . . Combat Hostiles . | . . . . . . . . Follow-up Attacks . | . . . . . . . . Damage Inflicted 7621 | 218 817 586 . 977 1116 2049 1858 Guns 4297 | 218 817 444 . 748 466 714 890 Cannons 1250 | . . . . . 650 600 . Explosions 2039 | . . 142 . 229 . 735 933 Melee . | . . . . . . . . Ramming 35 | . . . . . . . 35 Kinetic 4191 | 104 691 444 . 748 993 1211 . Thermal 937 | 114 126 . . . 123 91 483 Explosive 1106 | . . 142 . 229 . 735 . Electromagnetic 1352 | . . . . . . 12 1340 Impact . | . . . . . . . . Slashing . | . . . . . . . . Piercing . | . . . . . . . . Highest Corruption 23 | . . . . . . 14 23 Average Corruption 11 | . . . . . . 9 16 Corruption Purged . | . . . . . . . . Corruption Blocked . | . . . . . . . . Effects 71 | . . . . . . 43 28 Message Errors 19 | . . . . . . 14 5 Matter Fused 13 | . . . . . . 7 6 Heat Flow Errors 4 | . . . . . . 4 . Energy Discharges 13 | . . . . . . 7 6 Parts Rejected 1 | . . . . . . 1 . Parts Fused 1 | . . . . . . 1 . Data Loss (minor) 8 | . . . . . . 5 3 Data Loss (major) 2 | . . . . . . 1 1 Misfires 1 | . . . . . . 1 . Misdirections 5 | . . . . . . . 5 Weapon Failures 4 | . . . . . . 2 2 Overload Shots . | . . . . . . . . Overflow Damage 50 | . . . . 7 . 37 6 Projectiles . | . . . . . . . . Explosions 50 | . . . . 7 . 37 6 Melee . | . . . . . . . . Knockbacks 27 | . . . . . 12 15 . Impact . | . . . . . . . . Kinetic 26 | . . . . . 11 15 . Secondary 1 | . . . . . 1 . . Self-Inflicted Damage 111 | . . . . . . 105 6 Shots 3 | . . . . . . 2 1 Rammed . | . . . . . . . . Targets Rammed 9 | . . . . . . . 9 Kicked 9 | . . . . . . . 9 Crushed . | . . . . . . . . Highest Temperature 440 | 27 231 99 . 46 440 288 399 Average Temperature 91 | 11 91 25 . 12 125 101 118 Received Heat Transfer 1818 | . 255 102 . 135 369 54 903 Effects 13 | . . . . . 5 2 6 Shutdowns 1 | . . . . . . . 1 Energy Bleed 3 | . . . . . 2 . 1 Interference 8 | . . . . . 3 2 3 Damage (minor) 1 | . . . . . . . 1 Siege Activations . | . . . . . . . . Robots Corrupted 3 | . . . . . . . 3 Combat Hostiles 3 | . . . . . . . 3 Parts Fried 9 | . . . . . . . 9 Impact Corruptions . | . . . . . . . . Robots Melted . | . . . . . . . . Combat Hostiles . | . . . . . . . . Parts Melted 4 | . 1 . . . 1 . 2 Heat Transferred 2479 | 407 444 . . . 444 185 999 Parts Sabotaged . | . . . . . . . . Parts Stolen . | . . . . . . . . Parts Stripped . | . . . . . . . . Power Chain Reactions 1 | . . . . . . . 1 Alert | -11 -10 -10 -10 -9 -8 -7 -7 ------- Run | Yrd Mat Min Exi Min Mat Fac Sto Peak Influence 364 | 30 256 248 . 219 331 203 364 Initial 91 | . 19 38 . . . 21 91 Average 107 | 11 86 159 . 62 141 61 218 Maximum Alert Level 1 | . 1 1 . 1 1 1 1 Low Security (%) 83 | 100 93 69 . 96 88 91 32 Level 1 16 | . 6 30 . 3 11 8 67 Level 2 . | . . . . . . . . Level 3 . | . . . . . . . . Level 4 . | . . . . . . . . Level 5 . | . . . . . . . . High Security . | . . . . . . . . Max Security . | . . . . . . . . Squads Dispatched 22 | . 2 2 . 1 6 4 7 Investigation 6 | . . 1 . . 3 1 1 Extermination 4 | . . . . . . 2 2 Reinforcement 11 | . 2 . . 1 3 1 4 Assault 1 | . . 1 . . . . . Garrison . | . . . . . . . . Intercept . | . . . . . . . . Searches Triggered . | . . . . . . . . Construction Impeded 4 | . . . . 1 . 1 2 Haulers Reinforced 1 | . . . . . . . 1 Active Scanning Responses . | . . . . . . . . Cargo Convoy Interrupts . | . . . . . . . . Stealth | -11 -10 -10 -10 -9 -8 -7 -7 --------- Run | Yrd Mat Min Exi Min Mat Fac Sto Distress Signals 7 | . 4 . . . 1 . 2 Communications Jammed . | . . . . . . . . Distress Signals . | . . . . . . . . Times Spotted 127 | . 22 13 . 22 18 21 31 Peak Tracking Total 10 | . 8 4 . 9 6 6 10 Tactical Retreats 12 | . 3 . . 1 3 2 3 Traps | -11 -10 -10 -10 -9 -8 -7 -7 ------- Run | Yrd Mat Min Exi Min Mat Fac Sto Traps Triggered 1 | . 1 . . . . . . Indirectly . | . . . . . . . . Trap Hack Attempts . | . . . . . . . . Triggered . | . . . . . . . . Disarmed . | . . . . . . . . Reprogrammed . | . . . . . . . . Reused . | . . . . . . . . Traps Extracted . | . . . . . . . . Installed . | . . . . . . . . Triggered . | . . . . . . . . Machines | -11 -10 -10 -10 -9 -8 -7 -7 ---------- Run | Yrd Mat Min Exi Min Mat Fac Sto Machines Disabled 4 | . . 1 . . 1 2 . Max in Single Turn 1 | . . 1 . . 1 1 . Machines Repaired . | . . . . . . . . Machines Dismantled . | . . . . . . . . Machines Sabotaged . | . . . . . . . . Overloaded Fab Kills . | . . . . . . . . Hacking | -11 -10 -10 -10 -9 -8 -7 -7 --------- Run | Yrd Mat Min Exi Min Mat Fac Sto Machines Accessed 22 | . 7 1 3 1 4 3 3 Terminals 10 | . 5 . . . 2 2 1 Fabricators . | . . . . . . . . Repair Stations 2 | . 1 . . . 1 . . Recycling Units 5 | . 1 . . . 1 1 2 Scanalyzers . | . . . . . . . . Garrison Access . | . . . . . . . . Total Hacks 50 | . 20 1 3 1 14 6 5 Successful 21 | . 6 1 3 1 5 3 2 Failed 29 | . 14 . . . 9 3 3 Catastrophic 5 | . 2 . . . 1 1 1 Database Lockouts . | . . . . . . . . Manual . | . . . . . . . . Terminals 24 | . 12 . . . 6 5 1 Fabricators . | . . . . . . . . Repair Stations 8 | . 4 . . . 4 . . Recycling Units 13 | . 4 . . . 4 1 4 Scanalyzers . | . . . . . . . . Garrison Access . | . . . . . . . . Terminal Hacks 12 | . 3 1 3 1 2 2 . Record 3 | . . . 3 . . . . Open Door 2 | . . 1 . 1 . . . Open DSF 1 | . . . . . . 1 . Alert Level 1 | . . . . . . 1 . Locate Traps 4 | . 2 . . . 2 . . Zone Layout 1 | . 1 . . . . . . Fabricator Hacks . | . . . . . . . . Repair Station Hacks 4 | . 1 . . . 3 . . Scan Component 3 | . 1 . . . 2 . . Repair 1 | . . . . . 1 . . Recycling Unit Hacks 5 | . 2 . . . . 1 2 Report Inventory 1 | . . . . . . . 1 Retrieve Matter 1 | . 1 . . . . . . Retrieve Components 3 | . 1 . . . . 1 1 Scanalyzer . | . . . . . . . . Garrison Access Hacks . | . . . . . . . . Unauthorized Hacks . | . . . . . . . . Terminals . | . . . . . . . . Fabricators . | . . . . . . . . Repair Stations . | . . . . . . . . Recycling Units . | . . . . . . . . Scanalyzers . | . . . . . . . . Garrison Access . | . . . . . . . . Data Cores Recovered . | . . . . . . . . Used . | . . . . . . . . Hacking Detections 15 | . 7 . . . 4 2 2 Full Trace Events 8 | . 2 . . . 4 1 1 Feedback Events . | . . . . . . . . Feedback Blocked . | . . . . . . . . Robot Schematics Acquired . | . . . . . . . . Robots Built . | . . . . . . . . Authchips . | . . . . . . . . Time . | . . . . . . . . Total Robot Build Rating . | . . . . . . . . Part Schematics Acquired . | . . . . . . . . Parts Built . | . . . . . . . . Authchips . | . . . . . . . . Time . | . . . . . . . . Total Part Build Rating . | . . . . . . . . Parts Repaired 1 | . . . . . 1 . . Time 32 | . . . . . 32 . . Parts Recycled . | . . . . . . . . Recycled Matter . | . . . . . . . . Retrieved Matter . | . . . . . . . . Retrieved Components 7 | . . . . . . 1 6 Parts Scanalyzed . | . . . . . . . . Part Schematics Acquired . | . . . . . . . . Parts Damaged . | . . . . . . . . Bothacking | -11 -10 -10 -10 -9 -8 -7 -7 ------------ Run | Yrd Mat Min Exi Min Mat Fac Sto Used RIF Installer . | . . . . . . . . Robots Hacked . | . . . . . . . . Non-combat . | . . . . . . . . Combat . | . . . . . . . . Robot Hacks Applied . | . . . . . . . . Relay Couplers Released . | . . . . . . . . Fabnet Peak Effective % . | . . . . . . . . Robots Rewired . | . . . . . . . . Allies Hacked . | . . . . . . . . Hacks Repelled . | . . . . . . . . Allies | -11 -10 -10 -10 -9 -8 -7 -7 -------- Run | Yrd Mat Min Exi Min Mat Fac Sto Total Allies 5 | . . 1 . 3 1 . . Largest Group 1 | . . 1 . 1 1 . . Highest-Rated Group 31 | . . 31 . 31 29 . . Highest-Rated Ally 31 | . . 31 . 31 29 . . Total Orders 20 | . . . . 16 4 . . EXPLORE 5 | . . . . 3 2 . . RETURN 15 | . . . . 13 2 . . Ally Attacks 47 | . . 13 . 21 13 . . Total Damage 369 | . . 169 . 111 89 . . Kills 5 | . . 2 . 1 2 . . Allies Corrupted . | . . . . . . . . Allies Melted . | . . . . . . . . Intel | -11 -10 -10 -10 -9 -8 -7 -7 ------- Run | Yrd Mat Min Exi Min Mat Fac Sto Robot Analysis Total . | . . . . . . . . Derelict Logs Recovered 4 | . . 1 . 3 . . . Drone Launches 45 | . . . . 37 8 . . Drone Recoveries 41 | . . . . 31 10 . . Exploration | -11 -10 -10 -10 -9 -8 -7 -7 ------------- Run | Yrd Mat Min Exi Min Mat Fac Sto Turns Passed 6768 | 226 940 802 783 940 1058 1412 607 Spaces Moved 3548 | 148 442 450 652 585 523 495 253 Core 112 | 19 . . . . . 75 18 Treads 938 | . . . . . 471 299 168 Legs 2498 | 129 442 450 652 585 52 121 67 Wheels . | . . . . . . . . Hover . | . . . . . . . . Flight . | . . . . . . . . Fastest Speed 50 | 50 120 120 120 120 120 120 50 Average Speed 147 | 111 156 121 120 120 159 236 140 Slowest Speed 700 | 120 190 190 120 120 240 700 300 Overloaded Moves . | . . . . . . . . Propulsion Burnouts . | . . . . . . . . Robots Hopped . | . . . . . . . . Cave-ins Triggered 1 | . . . . . . 1 . Exploration Rate (%) 50 | 6 67 78 92 87 28 17 29 Regions Visited 7 Branch Regions 4 Pre-discovered Areas 1 | . . . . 1 . . . Known Exits Taken 2 | . 1 . . . 1 . . Unknown Exits Taken 5 | 1 . 1 1 1 . 1 . Scrap Searched 2 | . . . . 2 . . . Spaces Dug . | . . . . . . . . Terrain Destroyed 117 | . . 13 . 30 . 71 3 Melee . | . . . . . . . . Projectile 2 | . . . . . . 2 . AOE 115 | . . 13 . 30 . 69 3 Terrain Rammed . | . . . . . . . . Walls Destroyed . | . . . . . . . . Machines Disabled . | . . . . . . . . Actions | -11 -10 -10 -10 -9 -8 -7 -7 --------- Run | Yrd Mat Min Exi Min Mat Fac Sto Total 4579 | 179 621 663 652 754 676 622 412 Wait 546 | . 106 155 . 109 83 18 75 Move 3541 | 147 441 449 651 584 522 494 253 Hop . | . . . . . . . . Pick Up 68 | 10 11 7 . 4 13 16 7 Fast Attach 15 | 1 . 4 . 3 3 4 . Attach 47 | 6 1 . . 1 9 20 10 Detach 2 | . . . . . . . 2 Swap 53 | . 11 12 1 8 9 8 4 Drop 43 | . 9 11 . 5 6 5 7 Fire 255 | 15 42 25 . 40 31 57 45 Melee . | . . . . . . . . Ram . | . . . . . . . . Kick 9 | . . . . . . . 9 Crush . | . . . . . . . . Escape Stasis . | . . . . . . . . Rewire . | . . . . . . . . Trap . | . . . . . . . . Miscellaneous . | . . . . . . . . Route ------- -11/Scrapyard -10/Materials (discovered 2 exits: [*Mat] / *Min) -10/Mines (discovered 3 exits: [*Mat x2] / *Exi) -10/Exiles (discovered 2 exits: *Min x2) -9/Mines (discovered 2 exits: *Mat x2) -8/Materials -7/Factory -7/Storage History --------- Turn | Location | Event 5 | -11/Scrapyard | Discovered new exit (range 16) 227 | -11/Scrapyard | Entered Materials 301 | -10/Materials | Build established: Mutant 664 | -10/Materials | Discovered new exit (range 13) 803 | -10/Materials | Discovered new exit (range 13) 1167 | -10/Materials | Identified exit to Mines 1167 | -10/Materials | Entered Mines 1233 | -10/Mines | Discovered new exit (range 10) 1298 | -10/Mines | Learned Materials garrison access intel 1310 | -10/Mines | Core integrity fell below 50% 1376 | -10/Mines | Received a Rocket Launcher from a helpful Derelict 1605 | -10/Mines | Discovered new exit (range 14) 1641 | -10/Mines | Met a Derelict testing a Signal Generator 1647 | -10/Mines | Found a damaged Exp. Sensor Array with a note attached 1652 | -10/Mines | Found Prototype Device 1653 | -10/Mines | Identified Exp. Sensor Array 1905 | -10/Mines | Met a Derelict shopkeep closing up shop 1963 | -10/Mines | Deemed a non-threat by the Exiles lab entrance 1965 | -10/Mines | Discovered new exit (range 5) 1969 | -10/Mines | Entered Exiles 1969 | -10/Exiles | Found Exiles lab abandoned 2280 | -10/Exiles | Discovered new exit (range 12) 2601 | -10/Exiles | Discovered new exit (range 14) 2752 | -10/Exiles | Entered Mines 2753 | -9/Mines | Assembled infested the area 2758 | -9/Mines | Assisted by a Guerilla fighting off Assembled 2760 | -9/Mines | Discovered new exit (range 13) 2857 | -9/Mines | Destroyed 8 combat bots 2897 | -9/Mines | Found the Drone Emporium 2915 | -9/Mines | Found Prototype Device 2917 | -9/Mines | Identified Splice Drone Bay 3162 | -9/Mines | Learned Materials emergency access door positions 3171 | -9/Mines | Received a Mining Laser from a helpful Derelict 3280 | -9/Mines | Learned location of 1 exit from Materials 3434 | -9/Mines | Build established: Scavenger-Mutant 3455 | -9/Mines | Discovered new exit (range 22) 3692 | -9/Mines | Entered Materials 3692 | -8/Materials | Accompanied by 3 allies 3692 | -8/Materials | Evolved 4 slots: Power x1, Propulsion x1, Utility x1, Weapon x1 3693 | -8/Materials | Identified exit to Factory 3695 | -8/Materials | Loaded intel: 1 garrison access location 3901 | -8/Materials | Repaired Autogun 4210 | -8/Materials | Lost 4 parts (1p1n2u) 4542 | -8/Materials | Build established: Tank 4750 | -8/Materials | Entered Factory 4750 | -7/Factory | Evolved 2 slots: Propulsion x1, Utility x1 4940 | -7/Factory | Crushed by falling debris 4983 | -7/Factory | Lost 3 parts (3n) 5394 | -7/Factory | System corruption reached 10% 5450 | -7/Factory | Lost 12 parts (2p2n2u6w) 5676 | -7/Factory | Build established: Mutant 5905 | -7/Factory | Discovered new exit (range 16) 6162 | -7/Factory | Entered Storage 6272 | -7/Storage | Build established: Scavenger-Tank 6654 | -7/Storage | Lost 6 parts (1p2n3w) 6669 | -7/Storage | Core integrity fell below 50% 6750 | -7/Storage | Core integrity fell below 20% 6769 | -7/Storage | Destroyed by Y-54 Guardian with Flak Gun Last Messages --------------- Adv. Treads destroyed. Aluminum Leg destroyed. Kicked G-47 Trooper. Kicked G-47 Trooper out of the way. System corrupted: Titanium Leg stumbles. Critical hit (Burn: +37). O-16 Technician: "IFF HANDSHAKE FAILED. SECURING TERMINAL." Kicked G-47 Trooper. Kicked G-47 Trooper out of the way. Kicked G-47 Trooper. Titanium Leg destroyed. ALERT: Hostiles spotted, dispatching reinforcements to Terminal S009. Slug penetrates Wall. Dropped Structural Scanner. Dropped Med. Storage Unit. Critical hit (Burn: +37). Dropped Mic. Nuclear Core. EE3XXTRKMOWKYWDXW9% %TW2KJ Map ----- +----------------------------------------------------+ | ???????????????????????????????????????? | | ???????????????????????????????????????? | | ???????????????????????????????????????? | | ???????????????????????????????????????? | | ???????????????????????????????????????? | | ???????????????????????????????????????? | | ???????????????????????????????????????? | | ???????????????????????????????????????? | | ???????????????????????????????????????? | | ???????????????????????????????????????? | | ???????????????????????????????????????? | | ???????????????????????????????????????? | | ???????????????????????????????????????? | | ?????????????#?????????????????????????? | | ?????????????# ????????????????????????? | | ?????????????# ????????????????????????? | | ?????????????# ????????????????????????? | | ????????????##k????????????????????????? | | ????????????# ????????????????????????? | | ????????????# Y????????????????????????? | | ????????????# ????????????????????????? | | ???????????###/####????????????????????? | | ???????????# u #????????????????????? | | ???????????# #????????????????????? | | ???????????# r #????????????????????? | | ???????????# ! @ #????????????????????? | | ????????#??# #????????????????????? | | ????????# ?# #????????????????????? | | ???????## ######+## ####??????????????? | | ????# / "?????????? | | ???????###### ######+##+#??????????????? | | ???????????## ##???????????????????????? | | ???????????## ##???????????????????????? | | ???????????## #### ????????????????????? | | ???????????## #### ????????????????????? | | ???????????## # ????????????????????? | | ???????????## !* # ???????????????? ##?? | | ???????######%%! ##???????????????? ##?? | | ???????######/## ##???????????????? ##?? | | ???????## %%%# ##???????????????? ##?? | | ???????## " # ##??????????????? ##?? | | ???????## "G" / ##?????????????? ????? | | ???????## " " #%##????????????"" ?????? | | ???????## #%###???????? ????? | | ???????## #%##############/###????? | | ???????##### ### ## ########## ##????? | | ???????######### ## ### # ????? | | ??????????###### ## / # ????? | | ??????????????## ## """" ### # ????? | | ??????????????## ## """" ### # ????? | +----------------------------------------------------+ Best States ------------- Heat Dissipation 48 Energy Generation 24 Energy Capacity 305 Matter Stores 300 Matter Capacity 300 Sight Range 16 Robot Scan Range 20 Terrain Scan Density 10 Armor Coverage 300 Evasion (%) 55 Recoil Reduction 3 Item Schematics ----------------- None Robot Schematics ------------------ None Fabricated ------------ Nothing Alien Tech Used ----------------- None Achievements -------------- Error 47 Factory Defaults I Survived The Infestation Maybe Next Time I'll Detach My Launcher More Dakka Please Release The Drones! Challenges ------------ None Game ------ Seed DisruptorOmegaExpander Manual? 0 Play Time 01:07:59 Cumulative 11.8 hours Start 2024.05.12 @ 17:55:30 End 2024.05.12 @ 19:37:01 Sessions 1 Manual Loads 0 Difficulty Rogue Special Mode None Game No. 9 Rogue 9 Adventurer 0 Explorer 0 Win Type - Total 0 Types 0/0/0/0/0/0/0/0/0 Lore% 11 Gallery% 13 Achievement% 15 Wizard Run 0 Options --------- Layout 1 ASCII 0 Keyboard 0 Movement Mouse Keybinds 0 Fullscreen 1 Font 24/Smallcaps Map View 50x35 Zoom Use 0% Tactical HUD 0 Map Filters NONE Filters NONE Steam 1 RUN: 9df15d2b-d03d-42f7-91e7-50834fddbb58